Cogmind - Beta 9.3 @@@ ROGUE MODE // 2019.12.17 @ 11:59:44 // Winter2019/RPGLIKE Player: Zinc Result: Self-destructed Performance ------------- Evolutions (2) 1000 Regions Visited (5) 1000 Robots Destroyed (54) 270 Value Destroyed (1238) 1238 Prototype IDs (6) 120 Alien Tech Used (0) 0 Bonus (151) 151 TOTAL SCORE: 3779 Bonus ------- Aligned with FarCom 300 Friendly Fire -149 Cogmind --------- Core Integrity 655/1000 Matter 1/300 Energy 160/160 System Corruption 0% Temperature Cool (0) Movement Hovering (56) Location -8/Materials Parts ------- > --- POWER (1) -------- Light Nuclear Core > --- PROPULSION (2) --- Improved Hover Unit Improved Hover Unit > --- UTILITY (4) ------ Improved Signal Interpreter Recoil Stabilizer Improved Power Shielding > --- WEAPON (2) ------- Autogun Assault Cannon > --- INVENTORY (4) ---- Improved Hover Unit Datajack Peak State ------------ > --- POWER ------------ Light Nuclear Core > --- PROPULSION ------- Improved Hover Unit Improved Hover Unit > --- UTILITY ---------- Improved Signal Interpreter Trap Reconfigurator > --- WEAPON ----------- Autogun Rocket Launcher > --- INVENTORY -------- Improved Hover Unit PSU Rigger [Rating: 23] Favorites ----------- Power Ion Engine Engine Ion Engine Power Core Light Nuclear Core Propulsion Improved Hover Unit Treads Light Treads Leg Aluminum Leg Hover Unit Improved Hover Unit Utility Improved Signal Interpreter Device Sensor Array Processor Improved Signal Interpreter Protection Improved Power Shielding Weapon Autogun Energy Gun EM Pulse Gun Ballistic Gun Autogun Ballistic Cannon Assault Cannon Launcher Rocket Launcher Build | -11 -10 -10 -10 -9 -8 ------- Run | Scr Mat Min Exi Min Mat Slots Evolved 5 | 3 . . . . 2 Power . | . . . . . . Propulsion 1 | 1 . . . . . Utility 3 | 1 . . . . 2 Weapon 1 | 1 . . . . . Parts Attached 21 | 3 8 2 5 . 3 Power 1 | . . 1 . . . Engine . | . . . . . . Core 1 | . . 1 . . . Reactor . | . . . . . . Propulsion 4 | 2 2 . . . . Treads 2 | 2 . . . . . Leg . | . . . . . . Wheel . | . . . . . . Hover 2 | . 2 . . . . Flight . | . . . . . . Utility 9 | . 4 . 3 . 2 Device 7 | . 3 . 3 . 1 Storage . | . . . . . . Processor 1 | . 1 . . . . Hackware . | . . . . . . Protection 1 | . . . . . 1 Artifact . | . . . . . . Weapon 7 | 1 2 1 2 . 1 Energy Gun . | . . . . . . Energy Cannon . | . . . . . . Ballistic Gun 3 | 1 1 . 1 . . Ballistic Cannon 1 | . . . . . 1 Launcher 3 | . 1 1 1 . . Special Weapon . | . . . . . . Impact Weapon . | . . . . . . Slashing Weapon . | . . . . . . Piercing Weapon . | . . . . . . Special Melee Weapon . | . . . . . . Unidentified Prototypes 2 | . . . 2 . . Parts Lost . | . . . . . . Power . | . . . . . . Propulsion . | . . . . . . Utility . | . . . . . . Weapon . | . . . . . . Highest Loss Streak . | . . . . . . Average Slot Usage (%) 95 | . 94 100 99 100 85 Engine 9 | . 14 12 . . . Core 4 | . . 1 14 14 11 Treads 3 | . 6 . . . . Hover 24 | . 21 28 28 28 22 Device 13 | . 14 14 14 14 10 Processor 10 | . 8 14 14 14 11 Energy Gun 6 | . 12 . . . . Ballistic Gun 13 | . 14 14 14 14 11 Launcher 6 | . 1 14 13 14 6 Naked Turns . | . . . . . . Heaviest Build 16 | 8 11 13 13 13 16 Greatest Support 45 | 45 45 21 21 21 21 Greatest Overweight (x) . | . . . . . . Average Overweight (x) . | . . . . . . Largest Inventory Capacity 4 | 2 2 2 2 2 4 Average Capacity 2 | 2 2 2 2 2 3 Most Carried 2 | . 2 2 2 2 2 Average Carried 1 | . 1 2 1 2 1 Final Capacity 4 | 2 2 2 2 2 4 Final Carried 2 | . 2 2 2 2 2 Class Distribution -------------------- 92% | Mutant 7% | Hacker-Mutant Dominant Class ---------------- Mutant | -10/Materials Mutant | -10/Mines Mutant | -10/Exiles Mutant | -9/Mines Hacker-Mutant | -8/Materials Resources | -11 -10 -10 -10 -9 -8 ----------- Run | Scr Mat Min Exi Min Mat Matter Collected 861 | 234 502 88 . . 37 Remotely . | . . . . . . Salvage Created 1312 | 75 1002 100 . . 135 Parts 98 | 1 78 8 . . 11 Haulers Intercepted 2 | . 2 . . . . Recyclers Shooed 3 | . 3 . . . . Parts Field Recycled . | . . . . . . Retrieved Matter . | . . . . . . Parts Self-Destructed . | . . . . . . Prevented . | . . . . . . Kills | -11 -10 -10 -10 -9 -8 ------- Run | Scr Mat Min Exi Min Mat Combat Hostiles Destroyed 31 | . 19 6 . . 6 Guns 18 | . 17 . . . 1 AOE 13 | . 2 6 . . 5 Classes Destroyed 10 | 1 8 . . . 1 Worker 4 | . 4 . . . . Builder 5 | . 4 . . . 1 Tunneler 2 | . 2 . . . . Hauler 2 | . 2 . . . . Recycler 4 | 1 3 . . . . Operator 2 | . 1 . . . 1 Watcher 3 | . 3 . . . . Swarmer 9 | . 9 . . . . Grunt 22 | . 10 7 . . 5 Brawler 1 | . . . . . 1 Best Kill Streak 11 | 1 11 2 . . 7 Combat Bots Only 6 | . 4 2 . . 6 Max Kills in Single Turn 3 | 1 1 3 . . 2 Gunslinging . | . . . . . . Exploded 2 | . 1 2 . . 2 Melee . | . . . . . . Uniques/NPCs Destroyed . | . . . . . . Combat | -11 -10 -10 -10 -9 -8 -------- Run | Scr Mat Min Exi Min Mat Damage Taken 1258 | 18 612 218 . . 410 Core 1023 | 18 500 168 . . 337 Absorbed by Shields . | . . . . . . Redirected to Core 748 | . 352 153 . . 243 Core Remaining (%) 97 | 97 . . . 98 . Volleys Fired 133 | 4 104 11 . . 14 Largest 2 | 2 2 2 . . 2 Hottest 67 | 60 63 56 . . 67 Shots Fired 259 | 8 204 22 . . 25 Gun 225 | 8 192 11 . . 14 Cannon 2 | . . . . . 2 Launcher 32 | . 12 11 . . 9 Special . | . . . . . . Kinetic 135 | 4 104 11 . . 16 Thermal . | . . . . . . Explosive 32 | . 12 11 . . 9 Electromagnetic 92 | 4 88 . . . . Robot Hit Streak 9 | 7 9 5 . . 4 Robot Miss Streak 6 | . 4 3 . . 6 Penetration Max . | . . . . . . Secondary Targets 4 | . 4 . . . . Max Gunslinging Chain 1 | . 1 . . . . Shots Hit Robots 134 | 7 109 8 . . 10 Core Hits 91 | 2 54 14 . . 21 Critical Hits . | . . . . . . Critical Kills . | . . . . . . Critical Parts Destroyed . | . . . . . . Melee Attacks . | . . . . . . Impact . | . . . . . . Slashing . | . . . . . . Piercing . | . . . . . . Sneak Attacks . | . . . . . . Combat Hostiles . | . . . . . . Follow-up Attacks . | . . . . . . Damage Inflicted 3728 | 105 1669 643 . . 1311 Guns 1585 | 55 1347 55 . . 128 Cannons 50 | . . . . . 50 Explosions 2093 | 50 322 588 . . 1133 Melee . | . . . . . . Ramming . | . . . . . . Kinetic 783 | 15 535 55 . . 178 Thermal 241 | 50 191 . . . . Explosive 1852 | . 131 588 . . 1133 Electromagnetic 852 | 40 812 . . . . Impact . | . . . . . . Slashing . | . . . . . . Piercing . | . . . . . . Highest Corruption . | . . . . . . Average Corruption . | . . . . . . Corruption Purged . | . . . . . . Overload Shots . | . . . . . . Overflow Damage 143 | . 35 . . . 108 Projectiles . | . . . . . . Explosions 143 | . 35 . . . 108 Melee . | . . . . . . Knockbacks . | . . . . . . Impact . | . . . . . . Kinetic . | . . . . . . Secondary . | . . . . . . Self-Inflicted Damage 159 | 18 33 47 . . 61 Shots 7 | 1 2 2 . . 2 Rammed . | . . . . . . Targets Rammed . | . . . . . . Kicked . | . . . . . . Crushed . | . . . . . . Highest Temperature 172 | 32 152 90 . . 172 Average Temperature 41 | 22 33 35 . . 71 Received Heat Transfer 417 | . 150 78 . . 189 Siege Activations . | . . . . . . Robots Corrupted . | . . . . . . Combat Hostiles . | . . . . . . Parts Fried 2 | . 2 . . . . Impact Corruptions . | . . . . . . Robots Melted . | . . . . . . Combat Hostiles . | . . . . . . Parts Melted 1 | . 1 . . . . Heat Transferred 350 | 100 250 . . . . Parts Sabotaged . | . . . . . . Parts Stolen . | . . . . . . Parts Stripped . | . . . . . . Power Chain Reactions 6 | 2 4 . . . . Missiles Intercepted . | . . . . . . Alert | -11 -10 -10 -10 -9 -8 ------- Run | Scr Mat Min Exi Min Mat Peak Influence 300 | 5 270 300 . . 240 Average Influence 141 | 2 134 206 . . 155 Maximum Alert Level 1 | . 1 1 . . 1 Low Security (%) 77 | 100 79 73 . 100 50 Level 1 22 | . 20 26 . . 50 Level 2 . | . . . . . . Level 3 . | . . . . . . Level 4 . | . . . . . . Level 5 . | . . . . . . High Security . | . . . . . . Max Security . | . . . . . . Squads Dispatched 7 | . 4 . . . 3 Investigation 4 | . 3 . . . 1 Extermination . | . . . . . . Reinforcement 3 | . 1 . . . 2 Assault . | . . . . . . Garrison . | . . . . . . Intercept . | . . . . . . Construction Impeded . | . . . . . . Haulers Reinforced . | . . . . . . Stealth | -11 -10 -10 -10 -9 -8 --------- Run | Scr Mat Min Exi Min Mat Distress Signals 2 | . 2 . . . . Communications Jammed . | . . . . . . Distress Signals . | . . . . . . Times Spotted 60 | . 36 7 . . 17 Peak Tracking Total 7 | . 5 2 . . 7 Tactical Retreats 5 | . 2 . . . 3 Traps | -11 -10 -10 -10 -9 -8 ------- Run | Scr Mat Min Exi Min Mat Traps Triggered 2 | . 2 . . . . Indirectly . | . . . . . . Trap Hack Attempts . | . . . . . . Triggered . | . . . . . . Disarmed . | . . . . . . Reprogrammed . | . . . . . . Reused . | . . . . . . Traps Extracted . | . . . . . . Installed . | . . . . . . Triggered 1 | . 1 . . . . Machines | -11 -10 -10 -10 -9 -8 ---------- Run | Scr Mat Min Exi Min Mat Machines Disabled 13 | . 9 . . . 4 Max in Single Turn 2 | . 2 . . . 1 Machines Sabotaged . | . . . . . . Garrisons Compromised . | . . . . . . Overloaded Fab Kills . | . . . . . . Fab Network Shutdowns . | . . . . . . Hacking | -11 -10 -10 -10 -9 -8 --------- Run | Scr Mat Min Exi Min Mat Machines Accessed 9 | . 5 . 3 . 1 Terminals 6 | . 5 . . . 1 Fabricators . | . . . . . . Repair Stations . | . . . . . . Recycling Units . | . . . . . . Scanalyzers . | . . . . . . Garrison Access . | . . . . . . Total Hacks 53 | . 25 . 25 . 3 Successful 41 | . 16 . 25 . . Failed 12 | . 9 . . . 3 Catastrophic . | . . . . . . Database Lockouts . | . . . . . . Manual 9 | . 8 . 1 . . Terminals 28 | . 25 . . . 3 Fabricators . | . . . . . . Repair Stations . | . . . . . . Recycling Units . | . . . . . . Scanalyzers . | . . . . . . Garrison Access . | . . . . . . Terminal Hacks 38 | . 13 . 25 . . Record 26 | . 1 . 25 . . Prototype ID Bank 3 | . 3 . . . . Branch Access Points 1 | . 1 . . . . Repair Station Index 1 | . 1 . . . . Alert Level 3 | . 3 . . . . Unreport Threat 2 | . 2 . . . . Investigation Status 1 | . 1 . . . . Hauler Manifests 1 | . 1 . . . . Fabricator Hacks . | . . . . . . Repair Station Hacks . | . . . . . . Recycling Unit Hacks . | . . . . . . Scanalyzer . | . . . . . . Garrison Access Hacks . | . . . . . . Unauthorized Hacks 8 | . 8 . . . . Terminals 3 | . 3 . . . . Botnet 2 | . 2 . . . . Operators 1 | . 1 . . . . Fabricators . | . . . . . . Repair Stations . | . . . . . . Recycling Units . | . . . . . . Scanalyzers . | . . . . . . Garrison Access . | . . . . . . Data Cores Recovered . | . . . . . . Used . | . . . . . . Hacking Detections 6 | . 5 . . . 1 Full Trace Events 1 | . . . . . 1 Feedback Events . | . . . . . . Feedback Blocked . | . . . . . . Robot Schematics Acquired . | . . . . . . Robots Built . | . . . . . . Matter . | . . . . . . Time . | . . . . . . Total Robot Build Rating . | . . . . . . Part Schematics Acquired . | . . . . . . Parts Built . | . . . . . . Matter . | . . . . . . Time . | . . . . . . Total Part Build Rating . | . . . . . . Parts Repaired . | . . . . . . Time . | . . . . . . Parts Recycled . | . . . . . . Recycled Matter . | . . . . . . Retrieved Matter . | . . . . . . Retrieved Components . | . . . . . . Parts Scanalyzed . | . . . . . . Part Schematics Acquired . | . . . . . . Parts Damaged . | . . . . . . Bothacking | -11 -10 -10 -10 -9 -8 ------------ Run | Scr Mat Min Exi Min Mat Used RIF Installer . | . . . . . . Robots Hacked . | . . . . . . Non-combat . | . . . . . . Combat . | . . . . . . Robot Hacks Applied . | . . . . . . Relay Couplers Released . | . . . . . . Robots Rewired . | . . . . . . Allies Hacked . | . . . . . . Hacks Repelled . | . . . . . . Allies | -11 -10 -10 -10 -9 -8 -------- Run | Scr Mat Min Exi Min Mat Total Allies 3 | . . 3 . . . Largest Group 3 | . . 3 2 2 2 Highest-Rated Group 40 | . . 40 24 24 24 Highest-Rated Ally 16 | . . 16 16 16 16 Total Orders . | . . . . . . Ally Attacks 14 | . . 7 . . 7 Total Damage 136 | . . 66 . . 70 Kills 2 | . . 2 . . . Allies Corrupted . | . . . . . . Allies Melted . | . . . . . . Intel | -11 -10 -10 -10 -9 -8 ------- Run | Scr Mat Min Exi Min Mat Robot Analysis Total . | . . . . . . Derelict Logs Recovered 1 | . . . . 1 . Drone Launches . | . . . . . . Drone Recoveries . | . . . . . . Exploration | -11 -10 -10 -10 -9 -8 ------------- Run | Scr Mat Min Exi Min Mat Turns Passed 1805 | 35 946 323 265 84 152 Spaces Moved 1899 | 13 854 447 305 94 186 Core . | . . . . . . Treads 104 | 11 93 . . . . Legs 2 | 2 . . . . . Wheels . | . . . . . . Hover 1793 | . 761 447 305 94 186 Flight . | . . . . . . Fastest Speed 56 | 120 56 56 56 56 56 Average Speed 61 | 153 67 56 56 56 56 Slowest Speed 160 | 160 160 56 56 56 56 Overloaded Moves . | . . . . . . Propulsion Burnouts . | . . . . . . Robots Hopped . | . . . . . . Cave-ins Triggered . | . . . . . . Exploration Rate (%) 48 | 2 97 85 62 25 21 Regions Visited 5 Branch Regions 3 Pre-discovered Areas 1 | . . 1 . . . Known Exits Taken 4 | . 1 1 1 1 . Unknown Exits Taken 1 | 1 . . . . . Scrap Searched 1 | . . 1 . . . Spaces Dug . | . . . . . . Terrain Destroyed 231 | 9 72 115 . . 35 Melee . | . . . . . . Projectile . | . . . . . . AOE 231 | 9 72 115 . . 35 Actions | -11 -10 -10 -10 -9 -8 --------- Run | Scr Mat Min Exi Min Mat Total 2295 | 20 1042 499 399 124 211 Wait 175 | . 33 26 81 31 4 Move 1894 | 12 853 446 304 93 186 Hop . | . . . . . . Pick Up 8 | . 5 . 2 . 1 Fast Attach 20 | 3 7 2 5 . 3 Attach . | . . . . . . Detach . | . . . . . . Swap 1 | . 1 . . . . Drop 21 | 1 8 2 7 . 3 Fire 133 | 4 104 11 . . 14 Melee . | . . . . . . Ram . | . . . . . . Kick . | . . . . . . Crush . | . . . . . . Escape Stasis . | . . . . . . Rewire . | . . . . . . Trap . | . . . . . . Miscellaneous 43 | . 31 12 . . . Route ------- -11/Scrapyard -10/Materials (discovered 4 exits: *Mat x3 / *Min) -10/Mines (discovered 3 exits: *Mat x2 / *Exi) -10/Exiles -9/Mines -8/Materials History --------- Turn | Location | Event 1 | -11/Scrapyard | Upgraded with Propulsion slot (x1) 1 | -11/Scrapyard | Upgraded with Utility slot (x1) 1 | -11/Scrapyard | Upgraded with Weapon slot (x1) 1 | -11/Scrapyard | Discovered new exit (range 1) 36 | -11/Scrapyard | Entered Materials 312 | -10/Materials | Discovered new exit (range 16) 315 | -10/Materials | Build established: Mutant 381 | -10/Materials | Discovered new exit (range 13) 450 | -10/Materials | Discovered new exit (range 13) 465 | -10/Materials | Reached level 2 479 | -10/Materials | Identified exit to Materials 489 | -10/Materials | Identified exit to Mines 621 | -10/Materials | Discovered exit to Materials (range 12) 932 | -10/Materials | Reached level 3 982 | -10/Materials | Entered Mines 1022 | -10/Mines | Assisted by bots powering up and referring to "LRC-V3" 1049 | -10/Mines | Received a Rocket Launcher from a helpful Derelict 1200 | -10/Mines | Learned location of Storage (-7) 1200 | -10/Mines | Discovered exit to Materials (range 7) 1213 | -10/Mines | Discovered exit to Materials (range 4) 1251 | -10/Mines | Reached level 4 1280 | -10/Mines | Deemed a non-threat by the Exiles lab entrance 1280 | -10/Mines | Discovered new exit (range 5) 1282 | -10/Mines | Identified exit to Exiles 1305 | -10/Mines | Entered Exiles 1305 | -10/Exiles | Accompanied by 2 allies 1321 | -10/Exiles | Met 8R-AWN 1328 | -10/Exiles | Met EX-HEX 1345 | -10/Exiles | Met EX-BIN 1355 | -10/Exiles | Aligned with FarCom system 1355 | -10/Exiles | Given EX-Vault access code 1383 | -10/Exiles | Opened EX-Vault 1414 | -10/Exiles | Found Prototype Device 1414 | -10/Exiles | Identified PSU Rigger 1421 | -10/Exiles | Found Prototype Device 1421 | -10/Exiles | Identified Trap Reconfigurator 1439 | -10/Exiles | Warned to stay clear of 0b10 Research branches 1456 | -10/Exiles | Met EX-DEC 1483 | -10/Exiles | Discovered new exit (range 14) 1488 | -10/Exiles | Identified exit to Mines 1570 | -10/Exiles | Stole two prototypes: Trap Reconfigurator, PSU Rigger 1570 | -10/Exiles | Entered Mines 1570 | -9/Mines | Accompanied by 2 allies 1620 | -9/Mines | Discovered new exit (range 6) 1622 | -9/Mines | Identified exit to Materials 1654 | -9/Mines | Entered Materials 1654 | -8/Materials | Accompanied by 2 allies 1656 | -8/Materials | Reached level 5 1662 | -8/Materials | Upgraded with Utility slot (x2) 1715 | -8/Materials | Reached level 6 1806 | -8/Materials | Self-destructed Last Messages --------------- 01747_ G-47 Trooper destroyed. 01748_ U-05 Engineer lays Concrete. 01748_ K-01 Serf collects debris. 01749_ U-05 Engineer lays Concrete. 01750_ U-05 Engineer builds a Wall. 01750_ U-05 Engineer lays Concrete. 01750_ K-01 Serf collects debris. 01750_ R-06 Scavenger collects Hover Unit. 01751_ The unstable cave ceiling collapses. 01751_ U-05 Engineer lays Concrete. 01751_ Destroyed Lgt. Ion Engine. 01751_ K-01 Serf collects debris. 01752_ U-05 Engineer lays Concrete. 01754_ K-01 Serf cleans the Electrolysis Chamber. 01754_ U-05 Engineer lays Concrete. 01756_ U-05 Engineer builds a Wall. 01757_ U-05 Engineer lays Concrete. 01797_ Connecting with Terminal... 01797_ ALERT: Suspicious activity at Terminal M002. Dispatching Investigation squad. Map ----- +----------------------------------------------------+ | ??????????? # | | ??????????? !! + = [! | | ????????????########### # !! # [! | | ????????????????????####### ### ! # | | ????????????????????# ] # """ | | ????????????????????# # # """ | | ????????????????????# # !== # """ | | ????????????????????# # = # | | ????????????????????# # != ##+### | | ????????????????????# + ## #?? | | ????????????????????# # ## #?? | | ????????????????????############# """ ## #?? | | ??????????????????????????####### """ # #?? | | ????????????????????????? """ # #?? | | ???????????????????????Y?? # #?? | | ???????????g?????????????? # #?? | | ????????g?????????????????# # #?? | | ??????????????????????????# ######## #?? | | ?????????g????????????????# #??????# #?? | | ??????????????????#####+### """"" #??????# #?? | | ??????????????????? # """"" #??????# #?? | | ?????????????????# """ #s """"" #??????# #?? | | ?????????????????# """ # C #??????# #?? | | ?????????????????# """ #s #??????# #?? | | ?????????????????# # #??????# #?? | | ?????????????????# """ !@#s // ##+##### ##? | | ?????????????????# """ s / #? | | ?????????????????#/ """ # "T" #? | | ?????????????????# # """ #### #? | | ?????????????????################### ####+## | | ???????????????????????????????????# # | | ??????o????????????????????????????# # | | ???????????????????????????????????# # | | ??????????????????????????????########+## + | | ??????????????????????????????# # # | | ??????????????????????????????# """ # # | | ??????????????????????????????# """""########## | | ??????????????????????????????# """""#????????? | | ??????????????????????????????# """""#????????? | | ??????????????????????????????# """ #????????? | | ??????????????????????????????# #????????? | | ??????????????????????????????# ???????????? | | ??????????????????????????????#######????????????? | | ?????????????????????????????????????????????????? | | ?????????????????????????????????????????????????? | | ?????????????????????????????????????????????????? | | ?????????????????????????????????????????????????? | | ?????????????????????????????????????????????????? | | ?????????????????????????????????????????????????? | | ?????????????????????????????????????????????????? | +----------------------------------------------------+ Best States ------------- Heat Dissipation 39 Energy Generation 14 Energy Capacity 250 Matter Stores 300 Matter Capacity 300 Sight Range 16 Robot Scan Range 12 Terrain Scan Density 110 Power Shielding 66 Evasion (%) 53 Recoil Reduction 2 Offensive Hacking 20 Defensive Hacking 5 Item Schematics ----------------- None Robot Schematics ------------------ None Fabricated ------------ Nothing Alien Tech Used ----------------- None Achievements -------------- None Challenges ------------ None RPGLIKE | -11 -10 -10 -10 -9 -8 --------- Run | Scr Mat Min Exi Min Mat Levels Raised 5 | . 2 1 . . 2 XP Earned 11005 | 3000 3150 1490 350 500 2515 XP Spent 8955 | 3000 . . . . 5955 Upgrades 27 | 9 . . . . 18 Propulsion Slot 1 | 1 . . . . . Utility Slot 3 | 1 . . . . 2 Weapon Slot 1 | 1 . . . . . Core Integrity 8 | . . . . . 8 Mass Support 1 | 1 . . . . . Inventory Capacity 4 | 2 . . . . 2 Sensor Range 3 | 1 . . . . 2 Terrain Scan Density 1 | . . . . . 1 Hack Attack % 4 | 2 . . . . 2 Hack Defense % 1 | . . . . . 1 Protomatter Created 419 | . 285 92 . . 42 Integrity Restored 809 | . 592 217 . . . Core 678 | . 508 170 . . . Parts 131 | . 84 47 . . . Protomatter Decayed 93 | . 29 34 . . 30 Game ------ Seed DirtyIntegrationCannon Manual? 0 Play Time 00:27:37 Cumulative 75.5 hours Start 2019.12.17 @ 11:35:46 End 2019.12.17 @ 11:59:44 Sessions 1 Manual Loads 0 Difficulty Rogue Special Mode Winter2019/RPGLIKE Game No. 98 Rogue 98 Adventurer 0 Explorer 0 Win Type - Total 2 Types 2/0/0/0/0/0/0 Lore% 61 Gallery% 55 Achievement% 45 Wizard Run 0 Options --------- ASCII 0 Keyboard 0 Movement Mouse Keybinds 0 Fullscreen 2 Font 18/SmallcapsGlow Map View 76x50 Tactical HUD 1 Map Filters NONE Filters NONE Steam X RUN: f789d136-56d1-4db1-9a08-8d51ca793837